[Event "Titled Tuesday Blitz February 28 Early 2023"]
[White "Gutierrez Espinosa, Karen"]
[Black "Abdilkhair, Abilmansur"]
[WhiteFideId "3513238"]
[BlackFideId "13716417"]
[WhiteElo "2017"]
[BlackElo "2216"]
[Result "0-1"]
[Round "07"]
[TimeControl "180+2"]
[Date "2023.02.28"]
[WhiteClock "0:00:01"]
[BlackClock "0:00:02"]

1. e4 {[%clk 0:03:00]}  e5 {[%clk 0:02:59]} 2. Nf3 {[%clk 0:03:00]}  Nc6 {[%clk 0:02:59]} 3. Bb5 {[%clk 0:02:57]}  a6 {[%clk 0:03:00]} 4. Ba4 {[%clk 0:02:57]}  Nf6 {[%clk 0:03:00]} 5. Qe2 {[%clk 0:02:56]}  b5 {[%clk 0:03:01]} 6. Bb3 {[%clk 0:02:55]}  Be7 {[%clk 0:03:01]} 7. O-O {[%clk 0:02:55]}  d6 {[%clk 0:03:00]} 8. c3 {[%clk 0:02:55]}  O-O {[%clk 0:02:59]} 9. h3 {[%clk 0:02:55]}  Bb7 {[%clk 0:02:56]} 10. Rd1 {[%clk 0:02:52]}  Na5 {[%clk 0:02:49]} 11. Bc2 {[%clk 0:02:51]}  Re8 {[%clk 0:02:48]} 12. d4 {[%clk 0:02:48]}  exd4 {[%clk 0:02:46]} 13. cxd4 {[%clk 0:02:47]}  Bf8 {[%clk 0:02:46]} 14. e5 {[%clk 0:02:38]}  Qc8 {[%clk 0:01:47]} 15. Bg5 {[%clk 0:01:56]}  Nd7 {[%clk 0:01:03]} 16. Qd3 {[%clk 0:01:52]}  g6 {[%clk 0:00:59]} 17. Nc3 {[%clk 0:01:44]}  dxe5 {[%clk 0:00:45]} 18. dxe5 {[%clk 0:01:19]}  Nxe5 {[%clk 0:00:44]} 19. Nxe5 {[%clk 0:01:19]}  Rxe5 {[%clk 0:00:45]} 20. Bf6 {[%clk 0:01:19]}  Re6 {[%clk 0:00:37]} 21. Bh4 {[%clk 0:01:00]}  Bg7 {[%clk 0:00:30]} 22. b3 {[%clk 0:00:54]}  b4 {[%clk 0:00:23]} 23. Nd5 {[%clk 0:00:44]}  Bxd5 {[%clk 0:00:16]} 24. Qxd5 {[%clk 0:00:42]}  Nc6 {[%clk 0:00:11]} 25. Rac1 {[%clk 0:00:34]}  Ne7 {[%clk 0:00:10]} 26. Qd7 {[%clk 0:00:26]}  Nf5 {[%clk 0:00:06]} 27. Bxf5 {[%clk 0:00:22]}  gxf5 {[%clk 0:00:07]} 28. Rxc7 {[%clk 0:00:22]}  Qxd7 {[%clk 0:00:06]} 29. Rdxd7 {[%clk 0:00:22]}  Rf8 {[%clk 0:00:05]} 30. f3 {[%clk 0:00:13]}  Re2 {[%clk 0:00:04]} 31. Rb7 {[%clk 0:00:11]}  a5 {[%clk 0:00:02]} 32. Be7 {[%clk 0:00:08]}  Rxa2 {[%clk 0:00:02]} 33. Bxf8 {[%clk 0:00:07]}  Bxf8 {[%clk 0:00:01]} 34. Rxf7 {[%clk 0:00:08]}  Bc5+ {[%clk 0:00:02]} 35. Kh2 {[%clk 0:00:07]}  Bd6+ {[%clk 0:00:02]} 36. Kg1 {[%clk 0:00:06]}  Bc5+ {[%clk 0:00:02]} 37. Kf1 {[%clk 0:00:07]}  Rf2+ {[%clk 0:00:02]} 38. Ke1 {[%clk 0:00:07]}  Rxg2 {[%clk 0:00:02]} 39. Rxf5 {[%clk 0:00:07]}  Rg1+ {[%clk 0:00:03]} 40. Ke2 {[%clk 0:00:06]}  Bf8 {[%clk 0:00:03]} 41. Rxa5 {[%clk 0:00:02]}  Rg2+ {[%clk 0:00:02]} 42. Ke3 {[%clk 0:00:02]}  Rg6 {[%clk 0:00:02]} 43. Raa7 {[%clk 0:00:02]}  Re6+ {[%clk 0:00:01]} 44. Kf4 {[%clk 0:00:01]}  Rf6+ {[%clk 0:00:01]} 45. Ke5 {[%clk 0:00:01]}  Rg6 {[%clk 0:00:02]} 46. f4 {[%clk 0:00:01]}  Bd6+ {[%clk 0:00:02]} 47. Kf5 {[%clk 0:00:01]}  Bf8 {[%clk 0:00:02]} 0-1


[Site "https://www.chess.com"]

[Event "Titled Tuesday Blitz February 28 Early 2023"]
[White "Chernomordik, Pavel"]
[Black "Chemin, Justo Reinaldo"]
[WhiteFideId "2804530"]
[BlackFideId "2101580"]
[WhiteElo "2193"]
[BlackElo "1940"]
[Result "1-0"]
[Round "07"]
[TimeControl "180+2"]
[Date "2023.02.28"]
[WhiteClock "0:00:34"]
[BlackClock "0:00:01"]

1. e4 {[%clk 0:03:00]}  e6 {[%clk 0:02:52]} 2. Nc3 {[%clk 0:03:00]}  d5 {[%clk 0:02:52]} 3. d4 {[%clk 0:03:00]}  Bb4 {[%clk 0:02:49]} 4. Ne2 {[%clk 0:02:59]}  dxe4 {[%clk 0:02:46]} 5. a3 {[%clk 0:02:59]}  Be7 {[%clk 0:02:47]} 6. Nxe4 {[%clk 0:02:58]}  Nf6 {[%clk 0:02:48]} 7. Qd3 {[%clk 0:02:58]}  b6 {[%clk 0:02:48]} 8. Nxf6+ {[%clk 0:02:44]}  Bxf6 {[%clk 0:02:45]} 9. Qg3 {[%clk 0:02:43]}  Bb7 {[%clk 0:02:37]} 10. Bf4 {[%clk 0:02:39]}  c5 {[%clk 0:02:20]} 11. O-O-O {[%clk 0:02:30]}  cxd4 {[%clk 0:02:18]} 12. Be5 {[%clk 0:02:23]}  Nc6 {[%clk 0:02:01]} 13. Bd6 {[%clk 0:02:22]}  e5 {[%clk 0:01:46]} 14. Bb4 {[%clk 0:02:21]}  Nxb4 {[%clk 0:01:45]} 15. axb4 {[%clk 0:02:21]}  O-O {[%clk 0:01:44]} 16. f4 {[%clk 0:02:19]}  e4 {[%clk 0:01:42]} 17. Nxd4 {[%clk 0:02:13]}  Bxd4 {[%clk 0:01:32]} 18. c3 {[%clk 0:02:12]}  Rc8 {[%clk 0:01:31]} 19. Kb1 {[%clk 0:02:12]}  f5 {[%clk 0:01:17]} 20. Rxd4 {[%clk 0:02:10]}  Qe7 {[%clk 0:01:12]} 21. Bc4+ {[%clk 0:02:09]}  Kh8 {[%clk 0:01:11]} 22. Rhd1 {[%clk 0:02:05]}  Rfd8 {[%clk 0:01:08]} 23. Qe3 {[%clk 0:02:03]}  a6 {[%clk 0:01:02]} 24. h3 {[%clk 0:01:53]}  b5 {[%clk 0:01:00]} 25. Bb3 {[%clk 0:01:50]}  h6 {[%clk 0:00:58]} 26. g4 {[%clk 0:01:48]}  fxg4 {[%clk 0:00:51]} 27. hxg4 {[%clk 0:01:48]}  Rxd4 {[%clk 0:00:50]} 28. Qxd4 {[%clk 0:01:47]}  e3 {[%clk 0:00:45]} 29. Re1 {[%clk 0:01:45]}  e2 {[%clk 0:00:44]} 30. g5 {[%clk 0:01:36]}  Qe4+ {[%clk 0:00:35]} 31. Qxe4 {[%clk 0:01:22]}  Bxe4+ {[%clk 0:00:35]} 32. Kc1 {[%clk 0:01:23]}  Bf3 {[%clk 0:00:32]} 33. Kd2 {[%clk 0:01:19]}  Rd8+ {[%clk 0:00:30]} 34. Ke3 {[%clk 0:01:19]}  Rd1 {[%clk 0:00:28]} 35. Kf2 {[%clk 0:01:16]}  Bh5 {[%clk 0:00:21]} 36. Be6 {[%clk 0:01:10]}  hxg5 {[%clk 0:00:19]} 37. fxg5 {[%clk 0:01:09]}  g6 {[%clk 0:00:16]} 38. Bc8 {[%clk 0:01:08]}  Rd2 {[%clk 0:00:15]} 39. Bxa6 {[%clk 0:01:04]}  Rxb2 {[%clk 0:00:16]} 40. Bxb5 {[%clk 0:01:04]}  Rb3 {[%clk 0:00:14]} 41. Rc1 {[%clk 0:00:59]}  Rb2 {[%clk 0:00:09]} 42. Ke1 {[%clk 0:00:59]}  Ra2 {[%clk 0:00:05]} 43. Bd3 {[%clk 0:00:57]}  Kg7 {[%clk 0:00:04]} 44. b5 {[%clk 0:00:52]}  Bf3 {[%clk 0:00:04]} 45. c4 {[%clk 0:00:49]}  Ra8 {[%clk 0:00:04]} 46. Kf2 {[%clk 0:00:46]}  Bg4 {[%clk 0:00:01]} 47. Bxe2 {[%clk 0:00:45]}  Rf8+ {[%clk 0:00:02]} 48. Ke1 {[%clk 0:00:42]}  Bc8 {[%clk 0:00:03]} 49. c5 {[%clk 0:00:41]}  Re8 {[%clk 0:00:04]} 50. Kd2 {[%clk 0:00:40]}  Re5 {[%clk 0:00:03]} 51. b6 {[%clk 0:00:39]}  Rxg5 {[%clk 0:00:03]} 52. c6 {[%clk 0:00:39]}  Rd5+ {[%clk 0:00:02]} 53. Ke3 {[%clk 0:00:38]}  Re5+ {[%clk 0:00:02]} 54. Kf2 {[%clk 0:00:38]}  Rf5+ {[%clk 0:00:02]} 55. Ke3 {[%clk 0:00:36]}  Re5+ {[%clk 0:00:01]} 56. Kd2 {[%clk 0:00:36]}  Rd5+ {[%clk 0:00:01]} 57. Ke1 {[%clk 0:00:36]}  Re5 {[%clk 0:00:01]} 58. b7 {[%clk 0:00:34]} 1-0


[Site "https://www.chess.com"]

[Event "Titled Tuesday Blitz February 28 Early 2023"]
[White "Berezin, Viktor"]
[Black "Coelho, Ramyres Santana"]
[WhiteFideId "14107872"]
[BlackFideId "2120690"]
[WhiteElo "2310"]
[BlackElo "1888"]
[Result "0-1"]
[Round "07"]
[TimeControl "180+2"]
[Date "2023.02.28"]
[WhiteClock "0:00:05"]
[BlackClock "0:01:15"]

1. d4 {[%clk 0:03:00]}  c5 {[%clk 0:02:59]} 2. d5 {[%clk 0:03:00]}  d6 {[%clk 0:02:58]} 3. Nc3 {[%clk 0:03:01]}  Nf6 {[%clk 0:02:59]} 4. e4 {[%clk 0:03:01]}  g6 {[%clk 0:03:00]} 5. Bb5+ {[%clk 0:03:01]}  Bd7 {[%clk 0:03:00]} 6. a4 {[%clk 0:03:01]}  a6 {[%clk 0:02:59]} 7. Bxd7+ {[%clk 0:03:00]}  Nbxd7 {[%clk 0:03:00]} 8. Nf3 {[%clk 0:03:01]}  Bg7 {[%clk 0:03:00]} 9. O-O {[%clk 0:03:01]}  Ne5 {[%clk 0:03:00]} 10. Nd2 {[%clk 0:03:00]}  O-O {[%clk 0:02:59]} 11. h3 {[%clk 0:02:57]}  h5 {[%clk 0:02:59]} 12. f4 {[%clk 0:02:55]}  Ned7 {[%clk 0:02:58]} 13. Nc4 {[%clk 0:02:55]}  Qc7 {[%clk 0:02:57]} 14. a5 {[%clk 0:02:52]}  Rfe8 {[%clk 0:02:26]} 15. Re1 {[%clk 0:02:48]}  Nh7 {[%clk 0:02:25]} 16. Be3 {[%clk 0:02:36]}  f6 {[%clk 0:02:18]} 17. f5 {[%clk 0:02:28]}  gxf5 {[%clk 0:02:03]} 18. exf5 {[%clk 0:02:18]}  h4 {[%clk 0:02:00]} 19. Qg4 {[%clk 0:02:10]}  Kh8 {[%clk 0:01:58]} 20. Qxh4 {[%clk 0:02:10]}  Rg8 {[%clk 0:01:57]} 21. Kh1 {[%clk 0:01:32]}  Ne5 {[%clk 0:01:56]} 22. Nxe5 {[%clk 0:01:29]}  fxe5 {[%clk 0:01:56]} 23. Ne4 {[%clk 0:01:26]}  Raf8 {[%clk 0:01:54]} 24. Rf1 {[%clk 0:01:25]}  Bf6 {[%clk 0:01:50]} 25. Nxf6 {[%clk 0:01:09]}  exf6 {[%clk 0:01:50]} 26. Qe4 {[%clk 0:01:02]}  Rf7 {[%clk 0:01:46]} 27. Rf2 {[%clk 0:00:54]}  Rfg7 {[%clk 0:01:45]} 28. g4 {[%clk 0:00:45]}  Qf7 {[%clk 0:01:43]} 29. Rg1 {[%clk 0:00:42]}  Ng5 {[%clk 0:01:43]} 30. Bxg5 {[%clk 0:00:38]}  Rxg5 {[%clk 0:01:39]} 31. Rh2 {[%clk 0:00:30]}  Qh5 {[%clk 0:01:34]} 32. Qe3 {[%clk 0:00:22]}  Qh4 {[%clk 0:01:31]} 33. Qg3 {[%clk 0:00:19]}  Qh7 {[%clk 0:01:27]} 34. Qf3 {[%clk 0:00:19]}  Qh4 {[%clk 0:01:26]} 35. Qg3 {[%clk 0:00:18]}  Qh7 {[%clk 0:01:26]} 36. Kg2 {[%clk 0:00:16]}  Rxf5 {[%clk 0:01:24]} 37. Kh1 {[%clk 0:00:10]}  Rf4 {[%clk 0:01:25]} 38. Re2 {[%clk 0:00:02]}  Qf7 {[%clk 0:01:25]} 39. Kh2 {[%clk 0:00:02]}  Qxd5 {[%clk 0:01:24]} 40. Rf2 {[%clk 0:00:02]}  Rxf2+ {[%clk 0:01:23]} 41. Qxf2 {[%clk 0:00:03]}  Qe6 {[%clk 0:01:21]} 42. Qh4+ {[%clk 0:00:03]}  Kg7 {[%clk 0:01:20]} 43. Rf1 {[%clk 0:00:04]}  e4 {[%clk 0:01:18]} 44. g5 {[%clk 0:00:04]}  Qe5+ {[%clk 0:01:18]} 45. Kh1 {[%clk 0:00:05]}  Qxg5 {[%clk 0:01:17]} 46. Qg3 {[%clk 0:00:05]}  Qxg3 {[%clk 0:01:16]} 47. Rg1 {[%clk 0:00:05]}  Qxg1+ {[%clk 0:01:15]} 0-1


[Site "https://www.chess.com"]

[Event "Titled Tuesday Blitz February 28 Early 2023"]
[White "Khamdamova, Afruza"]
[Black "Van Dael, Siem"]
[WhiteFideId "14210444"]
[BlackFideId "1049771"]
[WhiteElo "2210"]
[BlackElo "2336"]
[Result "0-1"]
[Round "07"]
[TimeControl "180+2"]
[Date "2023.02.28"]
[WhiteClock "0:00:33"]
[BlackClock "0:00:05"]

1. e4 {[%clk 0:03:00]}  c5 {[%clk 0:02:09]} 2. Nf3 {[%clk 0:02:58]}  d6 {[%clk 0:02:09]} 3. d4 {[%clk 0:02:58]}  cxd4 {[%clk 0:02:10]} 4. Nxd4 {[%clk 0:02:58]}  Nf6 {[%clk 0:02:11]} 5. Nc3 {[%clk 0:02:58]}  g6 {[%clk 0:02:11]} 6. Be3 {[%clk 0:02:58]}  Bg7 {[%clk 0:02:12]} 7. f3 {[%clk 0:02:58]}  O-O {[%clk 0:02:12]} 8. Qd2 {[%clk 0:02:58]}  Nc6 {[%clk 0:02:13]} 9. Bc4 {[%clk 0:02:57]}  Bd7 {[%clk 0:02:13]} 10. O-O-O {[%clk 0:02:56]}  Rc8 {[%clk 0:02:13]} 11. Bb3 {[%clk 0:02:53]}  Ne5 {[%clk 0:02:14]} 12. Bh6 {[%clk 0:02:52]}  Nc4 {[%clk 0:02:13]} 13. Bxc4 {[%clk 0:02:52]}  Rxc4 {[%clk 0:02:13]} 14. Bxg7 {[%clk 0:02:52]}  Kxg7 {[%clk 0:02:14]} 15. h4 {[%clk 0:02:51]}  h5 {[%clk 0:01:58]} 16. g4 {[%clk 0:02:48]}  hxg4 {[%clk 0:01:53]} 17. h5 {[%clk 0:02:45]}  Rh8 {[%clk 0:01:49]} 18. hxg6 {[%clk 0:02:32]}  fxg6 {[%clk 0:01:49]} 19. f4 {[%clk 0:02:31]}  e5 {[%clk 0:01:27]} 20. Nde2 {[%clk 0:02:19]}  Bc6 {[%clk 0:00:55]} 21. fxe5 {[%clk 0:02:03]}  Nxe4 {[%clk 0:00:53]} 22. Nxe4 {[%clk 0:01:47]}  Bxe4 {[%clk 0:00:49]} 23. Rxh8 {[%clk 0:01:33]}  Qxh8 {[%clk 0:00:44]} 24. Nd4 {[%clk 0:01:10]}  dxe5 {[%clk 0:00:10]} 25. Ne6+ {[%clk 0:00:54]}  Kf6 {[%clk 0:00:10]} 26. c3 {[%clk 0:00:53]}  Kxe6 {[%clk 0:00:05]} 27. Qd7+ {[%clk 0:00:50]}  Kf6 {[%clk 0:00:05]} 28. Rd6+ {[%clk 0:00:49]}  Kg5 {[%clk 0:00:05]} 29. Qe7+ {[%clk 0:00:49]}  Kf4 {[%clk 0:00:05]} 30. Rf6+ {[%clk 0:00:49]}  Bf5 {[%clk 0:00:05]} 31. Qd6 {[%clk 0:00:40]}  Qh1+ {[%clk 0:00:05]} 32. Kd2 {[%clk 0:00:39]}  Qg2+ {[%clk 0:00:05]} 33. Ke1 {[%clk 0:00:37]}  Qg1+ {[%clk 0:00:05]} 34. Kd2 {[%clk 0:00:37]}  Qe3+ {[%clk 0:00:05]} 35. Kd1 {[%clk 0:00:36]}  Qf3+ {[%clk 0:00:04]} 36. Kc1 {[%clk 0:00:34]}  Qf1+ {[%clk 0:00:04]} 37. Kd2 {[%clk 0:00:34]}  Qf2+ {[%clk 0:00:04]} 38. Kd1 {[%clk 0:00:33]}  Qc2+ {[%clk 0:00:05]} 39. Ke1 {[%clk 0:00:33]}  Re4+ {[%clk 0:00:05]} 0-1


[Site "https://www.chess.com"]

[Event "Titled Tuesday Blitz February 28 Early 2023"]
[White "Valle Maytin, Luis Enrique"]
[Black "Ljukin, Sergei"]
[WhiteFideId "3503666"]
[BlackFideId "14102200"]
[WhiteElo "2225"]
[BlackElo "2312"]
[Result "0-1"]
[Round "07"]
[TimeControl "180+2"]
[Date "2023.02.28"]
[WhiteClock "0:00:59"]
[BlackClock "0:01:02"]

1. e4 {[%clk 0:03:00]}  e6 {[%clk 0:02:56]} 2. d4 {[%clk 0:03:00]}  d5 {[%clk 0:02:56]} 3. exd5 {[%clk 0:03:00]}  exd5 {[%clk 0:02:56]} 4. Nf3 {[%clk 0:03:01]}  Nf6 {[%clk 0:02:57]} 5. Bd3 {[%clk 0:03:02]}  c5 {[%clk 0:02:57]} 6. Qe2+ {[%clk 0:02:57]}  Be7 {[%clk 0:02:55]} 7. Bb5+ {[%clk 0:02:56]}  Nc6 {[%clk 0:02:54]} 8. O-O {[%clk 0:02:54]}  O-O {[%clk 0:02:53]} 9. Bxc6 {[%clk 0:02:52]}  bxc6 {[%clk 0:02:53]} 10. Ne5 {[%clk 0:02:53]}  Qc7 {[%clk 0:02:48]} 11. c3 {[%clk 0:02:48]}  Re8 {[%clk 0:02:44]} 12. Bf4 {[%clk 0:02:37]}  Bd6 {[%clk 0:02:42]} 13. Qc2 {[%clk 0:02:28]}  Ng4 {[%clk 0:02:13]} 14. Nxg4 {[%clk 0:01:33]}  Bxf4 {[%clk 0:02:10]} 15. Ne3 {[%clk 0:01:34]}  Bxh2+ {[%clk 0:02:06]} 16. Kh1 {[%clk 0:01:33]}  Bf4 {[%clk 0:02:05]} 17. Nd2 {[%clk 0:01:31]}  Qd6 {[%clk 0:01:52]} 18. Nf3 {[%clk 0:01:31]}  Qh6+ {[%clk 0:01:51]} 19. Kg1 {[%clk 0:01:31]}  Rxe3 {[%clk 0:01:38]} 20. fxe3 {[%clk 0:01:32]}  Bxe3+ {[%clk 0:01:38]} 21. Rf2 {[%clk 0:01:31]}  Bg4 {[%clk 0:01:35]} 22. Re1 {[%clk 0:01:28]}  Bxf3 {[%clk 0:01:29]} 23. gxf3 {[%clk 0:01:18]}  cxd4 {[%clk 0:01:29]} 24. cxd4 {[%clk 0:01:17]}  Bxd4 {[%clk 0:01:29]} 25. Kf1 {[%clk 0:01:12]}  Bxf2 {[%clk 0:01:28]} 26. Qxf2 {[%clk 0:01:11]}  Qf6 {[%clk 0:01:18]} 27. Rc1 {[%clk 0:01:08]}  g6 {[%clk 0:01:15]} 28. Rc3 {[%clk 0:01:04]}  d4 {[%clk 0:01:10]} 29. Rc4 {[%clk 0:01:01]}  Rd8 {[%clk 0:01:08]} 30. Ke2 {[%clk 0:01:00]}  d3+ {[%clk 0:01:07]} 31. Kd2 {[%clk 0:01:00]}  Qxb2+ {[%clk 0:01:06]} 32. Ke3 {[%clk 0:00:59]}  Qxf2+ {[%clk 0:01:02]} 33. Kxf2 {[%clk 0:00:59]}  d2 {[%clk 0:01:02]} 0-1


[Site "https://www.chess.com"]

[Event "Titled Tuesday Blitz February 28 Early 2023"]
[White "Ibadov, Dashgyn"]
[Black "Jenkins, Drake"]
[WhiteFideId "24107514"]
[BlackFideId "2022397"]
[WhiteElo "2208"]
[BlackElo "2358"]
[Result "1-0"]
[Round "07"]
[TimeControl "180+2"]
[Date "2023.02.28"]
[WhiteClock "0:00:30"]
[BlackClock "0:00:09"]

1. e4 {[%clk 0:03:00]}  c6 {[%clk 0:02:38]} 2. d4 {[%clk 0:03:00]}  d5 {[%clk 0:02:39]} 3. Nc3 {[%clk 0:03:00]}  dxe4 {[%clk 0:02:39]} 4. Nxe4 {[%clk 0:03:01]}  Nf6 {[%clk 0:02:39]} 5. Nxf6+ {[%clk 0:03:00]}  exf6 {[%clk 0:02:40]} 6. c3 {[%clk 0:03:00]}  Bd6 {[%clk 0:02:40]} 7. Bd3 {[%clk 0:03:00]}  O-O {[%clk 0:02:40]} 8. Qc2 {[%clk 0:03:00]}  Re8+ {[%clk 0:02:38]} 9. Ne2 {[%clk 0:03:00]}  h5 {[%clk 0:02:38]} 10. O-O {[%clk 0:02:59]}  Nd7 {[%clk 0:02:34]} 11. Bd2 {[%clk 0:02:54]}  Nf8 {[%clk 0:02:34]} 12. Rae1 {[%clk 0:02:55]}  Be6 {[%clk 0:02:30]} 13. Nf4 {[%clk 0:02:53]}  h4 {[%clk 0:02:03]} 14. h3 {[%clk 0:02:45]}  Qc7 {[%clk 0:01:51]} 15. Nxe6 {[%clk 0:02:44]}  Rxe6 {[%clk 0:01:51]} 16. Bf5 {[%clk 0:02:38]}  Bh2+ {[%clk 0:01:39]} 17. Kh1 {[%clk 0:02:38]}  Ree8 {[%clk 0:01:29]} 18. Re4 {[%clk 0:01:51]}  g6 {[%clk 0:01:29]} 19. Rxh4 {[%clk 0:01:49]}  gxf5 {[%clk 0:01:21]} 20. Qxf5 {[%clk 0:01:44]}  Ng6 {[%clk 0:01:20]} 21. Rg4 {[%clk 0:01:31]}  Re2 {[%clk 0:01:12]} 22. Be3 {[%clk 0:01:22]}  Kg7 {[%clk 0:00:52]} 23. g3 {[%clk 0:01:10]}  Rxe3 {[%clk 0:00:47]} 24. fxe3 {[%clk 0:01:11]}  Bxg3 {[%clk 0:00:44]} 25. Qxf6+ {[%clk 0:01:11]}  Kg8 {[%clk 0:00:39]} 26. Rxg6+ {[%clk 0:01:03]}  fxg6 {[%clk 0:00:39]} 27. Qxg6+ {[%clk 0:01:03]}  Qg7 {[%clk 0:00:36]} 28. Qxg7+ {[%clk 0:01:03]}  Kxg7 {[%clk 0:00:36]} 29. Rg1 {[%clk 0:01:04]}  Kf6 {[%clk 0:00:29]} 30. Rxg3 {[%clk 0:01:04]}  a5 {[%clk 0:00:28]} 31. Kg2 {[%clk 0:01:04]}  a4 {[%clk 0:00:29]} 32. Kf3 {[%clk 0:01:03]}  a3 {[%clk 0:00:29]} 33. b3 {[%clk 0:01:03]}  b6 {[%clk 0:00:22]} 34. e4 {[%clk 0:01:03]}  c5 {[%clk 0:00:21]} 35. h4 {[%clk 0:00:57]}  cxd4 {[%clk 0:00:20]} 36. cxd4 {[%clk 0:00:58]}  Rc8 {[%clk 0:00:20]} 37. e5+ {[%clk 0:00:59]}  Kf7 {[%clk 0:00:12]} 38. Rg2 {[%clk 0:00:56]}  Rc1 {[%clk 0:00:13]} 39. Ke4 {[%clk 0:00:55]}  Rb1 {[%clk 0:00:11]} 40. Kd3 {[%clk 0:00:36]}  b5 {[%clk 0:00:11]} 41. d5 {[%clk 0:00:33]}  Rd1+ {[%clk 0:00:09]} 42. Ke4 {[%clk 0:00:32]}  Rb1 {[%clk 0:00:09]} 43. e6+ {[%clk 0:00:30]} 1-0


[Site "https://www.chess.com"]

[Event "Titled Tuesday Blitz February 28 Early 2023"]
[White "Martic, Ivan"]
[Black "Ansh M Shah"]
[WhiteFideId "929301"]
[BlackFideId "25033379"]
[WhiteElo "2360"]
[BlackElo "2084"]
[Result "1-0"]
[Round "07"]
[TimeControl "180+2"]
[Date "2023.02.28"]
[WhiteClock "0:01:50"]
[BlackClock "0:00:13"]

1. e4 {[%clk 0:03:00]}  c6 {[%clk 0:02:59]} 2. d4 {[%clk 0:02:59]}  d5 {[%clk 0:03:00]} 3. Nd2 {[%clk 0:02:59]}  dxe4 {[%clk 0:03:00]} 4. Nxe4 {[%clk 0:03:00]}  Bf5 {[%clk 0:03:00]} 5. Ng3 {[%clk 0:03:00]}  Bg6 {[%clk 0:03:00]} 6. Nh3 {[%clk 0:03:00]}  Nf6 {[%clk 0:02:53]} 7. Nf4 {[%clk 0:03:00]}  e6 {[%clk 0:02:52]} 8. h4 {[%clk 0:03:00]}  e5 {[%clk 0:02:10]} 9. dxe5 {[%clk 0:02:36]}  Qxd1+ {[%clk 0:02:08]} 10. Kxd1 {[%clk 0:02:36]}  Ng4 {[%clk 0:02:06]} 11. Nxg6 {[%clk 0:02:30]}  hxg6 {[%clk 0:01:58]} 12. Ne4 {[%clk 0:02:24]}  Nxe5 {[%clk 0:01:52]} 13. Bf4 {[%clk 0:02:24]}  Nbd7 {[%clk 0:01:49]} 14. c3 {[%clk 0:02:21]}  O-O-O {[%clk 0:01:40]} 15. Kc2 {[%clk 0:02:21]}  Re8 {[%clk 0:01:24]} 16. Re1 {[%clk 0:02:14]}  f5 {[%clk 0:01:03]} 17. Ng5 {[%clk 0:02:13]}  Bc5 {[%clk 0:00:56]} 18. f3 {[%clk 0:02:02]}  Bf2 {[%clk 0:00:20]} 19. Re2 {[%clk 0:01:54]}  Bxh4 {[%clk 0:00:20]} 20. g3 {[%clk 0:01:54]}  Bxg5 {[%clk 0:00:16]} 21. Rxh8 {[%clk 0:01:55]}  Rxh8 {[%clk 0:00:15]} 22. Bxg5 {[%clk 0:01:52]}  Nxf3 {[%clk 0:00:15]} 23. Bf4 {[%clk 0:01:49]}  Rh2 {[%clk 0:00:15]} 24. Bg2 {[%clk 0:01:50]}  Ng1 {[%clk 0:00:13]} 25. Re8# {[%clk 0:01:50]} 1-0


[Site "https://www.chess.com"]

[Event "Titled Tuesday Blitz February 28 Early 2023"]
[White "Matveeva, Olga"]
[Black "Belov, Alexei"]
[WhiteFideId "24107018"]
[BlackFideId "4128206"]
[WhiteElo "2056"]
[BlackElo "2490"]
[Result "0-1"]
[Round "07"]
[TimeControl "180+2"]
[Date "2023.02.28"]
[WhiteClock "0:00:37"]
[BlackClock "0:01:46"]

1. d4 {[%clk 0:03:00]}  e6 {[%clk 0:02:59]} 2. c4 {[%clk 0:03:01]}  d5 {[%clk 0:02:59]} 3. Nf3 {[%clk 0:03:01]}  Nf6 {[%clk 0:02:59]} 4. g3 {[%clk 0:03:02]}  Be7 {[%clk 0:02:59]} 5. Bg2 {[%clk 0:03:02]}  O-O {[%clk 0:03:00]} 6. O-O {[%clk 0:03:03]}  dxc4 {[%clk 0:03:01]} 7. Qc2 {[%clk 0:03:02]}  a6 {[%clk 0:03:01]} 8. a4 {[%clk 0:03:02]}  Bd7 {[%clk 0:03:01]} 9. Qxc4 {[%clk 0:03:03]}  Bc6 {[%clk 0:03:01]} 10. Bf4 {[%clk 0:03:03]}  Nbd7 {[%clk 0:03:01]} 11. Nc3 {[%clk 0:03:02]}  Nb6 {[%clk 0:03:01]} 12. Qd3 {[%clk 0:03:01]}  Nbd5 {[%clk 0:03:01]} 13. Bg5 {[%clk 0:02:54]}  Nxc3 {[%clk 0:02:32]} 14. bxc3 {[%clk 0:02:51]}  b5 {[%clk 0:02:32]} 15. Bxf6 {[%clk 0:02:41]}  Bxf6 {[%clk 0:02:31]} 16. Ng5 {[%clk 0:02:40]}  Bxg5 {[%clk 0:02:23]} 17. Bxc6 {[%clk 0:02:40]}  Rb8 {[%clk 0:02:23]} 18. axb5 {[%clk 0:02:39]}  axb5 {[%clk 0:02:23]} 19. Bxb5 {[%clk 0:02:26]}  Qd6 {[%clk 0:02:22]} 20. Ra6 {[%clk 0:02:20]}  Rb6 {[%clk 0:02:21]} 21. Rxb6 {[%clk 0:02:14]}  Qxb6 {[%clk 0:02:22]} 22. Rb1 {[%clk 0:02:13]}  Rb8 {[%clk 0:02:20]} 23. Qe4 {[%clk 0:02:02]}  Qa5 {[%clk 0:02:10]} 24. Bd3 {[%clk 0:01:58]}  Rxb1+ {[%clk 0:02:08]} 25. Bxb1 {[%clk 0:01:58]}  g6 {[%clk 0:02:08]} 26. Qc2 {[%clk 0:01:49]}  c5 {[%clk 0:02:03]} 27. h4 {[%clk 0:01:43]}  Bf6 {[%clk 0:02:01]} 28. e3 {[%clk 0:01:32]}  h5 {[%clk 0:02:00]} 29. Qb3 {[%clk 0:01:26]}  cxd4 {[%clk 0:01:58]} 30. exd4 {[%clk 0:01:14]}  Kg7 {[%clk 0:01:57]} 31. Be4 {[%clk 0:01:09]}  Qa1+ {[%clk 0:01:53]} 32. Kg2 {[%clk 0:01:09]}  Qe1 {[%clk 0:01:53]} 33. Qc4 {[%clk 0:00:52]}  Qxe4+ {[%clk 0:01:51]} 34. Kg1 {[%clk 0:00:37]}  e5 {[%clk 0:01:46]} 0-1


[Site "https://www.chess.com"]

[Event "Titled Tuesday Blitz February 28 Early 2023"]
[White "Novikov, Evgenij"]
[Black "Sovetbekova, Nurai"]
[WhiteFideId "4125380"]
[BlackFideId "13801910"]
[WhiteElo "2242"]
[BlackElo "1857"]
[Result "1-0"]
[Round "07"]
[TimeControl "180+2"]
[Date "2023.02.28"]
[WhiteClock "0:00:26"]
[BlackClock "0:00:05"]

1. e4 {[%clk 0:03:00]}  c5 {[%clk 0:02:58]} 2. Nf3 {[%clk 0:02:58]}  d6 {[%clk 0:02:58]} 3. d4 {[%clk 0:02:58]}  cxd4 {[%clk 0:02:59]} 4. c3 {[%clk 0:02:59]}  Nf6 {[%clk 0:02:51]} 5. Qxd4 {[%clk 0:02:56]}  Nc6 {[%clk 0:02:48]} 6. Qe3 {[%clk 0:02:56]}  e6 {[%clk 0:02:44]} 7. Bd3 {[%clk 0:02:53]}  Be7 {[%clk 0:02:39]} 8. O-O {[%clk 0:02:52]}  O-O {[%clk 0:02:39]} 9. Rd1 {[%clk 0:02:51]}  Qc7 {[%clk 0:02:35]} 10. b3 {[%clk 0:02:46]}  Ng4 {[%clk 0:02:28]} 11. Qe2 {[%clk 0:02:42]}  Nce5 {[%clk 0:02:10]} 12. Nxe5 {[%clk 0:02:37]}  Nxe5 {[%clk 0:02:09]} 13. Bc2 {[%clk 0:02:36]}  b6 {[%clk 0:02:05]} 14. Bb2 {[%clk 0:02:34]}  Bb7 {[%clk 0:02:02]} 15. Nd2 {[%clk 0:02:34]}  Rac8 {[%clk 0:01:49]} 16. Rac1 {[%clk 0:02:33]}  Rfd8 {[%clk 0:01:46]} 17. Bb1 {[%clk 0:02:25]}  Bf6 {[%clk 0:01:42]} 18. Nf1 {[%clk 0:02:17]}  Ng6 {[%clk 0:01:29]} 19. Ng3 {[%clk 0:01:55]}  d5 {[%clk 0:01:01]} 20. exd5 {[%clk 0:01:48]}  Bxd5 {[%clk 0:00:59]} 21. Be4 {[%clk 0:01:27]}  Bxe4 {[%clk 0:00:45]} 22. Nxe4 {[%clk 0:01:25]}  Be5 {[%clk 0:00:40]} 23. g3 {[%clk 0:01:15]}  Qc6 {[%clk 0:00:32]} 24. Ng5 {[%clk 0:01:07]}  Bc7 {[%clk 0:00:28]} 25. c4 {[%clk 0:01:00]}  h6 {[%clk 0:00:20]} 26. Nf3 {[%clk 0:00:53]}  Qb7 {[%clk 0:00:16]} 27. h4 {[%clk 0:00:50]}  Ne7 {[%clk 0:00:13]} 28. Ne5 {[%clk 0:00:43]}  Nf5 {[%clk 0:00:12]} 29. Qg4 {[%clk 0:00:42]}  f6 {[%clk 0:00:09]} 30. Ng6 {[%clk 0:00:34]}  Bd6 {[%clk 0:00:09]} 31. Nf4 {[%clk 0:00:32]}  Kh7 {[%clk 0:00:06]} 32. Nxe6 {[%clk 0:00:27]}  Ne7 {[%clk 0:00:05]} 33. Qxg7# {[%clk 0:00:26]} 1-0


[Site "https://www.chess.com"]